Workbook

Sheet Sec. 9.5 Ex2
B2: coef. for x_1 | C2: coef. for x_2 | D2: coef. for x_3 | E2: Result
A3: Objective Function | B3: 4 | C3: 2 | D3: 1 | E3: =SUMPRODUCT(B3:D3,$B$8:$D$8) -> 2
A4: C1 | B4: 2 | C4: 3 | D4: 4 | E4: =SUMPRODUCT(B4:D4,$B$8:$D$8) -> 8 | F4: <= | G4: 14 | J4: s_1 = | K4: =G4-E4 -> 6
A5: C2 | B5: 3 | C5: 1 | D5: 5 | E5: =SUMPRODUCT(B5:D5,$B$8:$D$8) -> 10 | F5: >= | G5: 4 | J5: s_2 = | K5: =E5-G5 -> 6
A6: C3 | B6: 1 | C6: 4 | D6: 3 | E6: =SUMPRODUCT(B6:D6,$B$8:$D$8) -> 6 | F6: >= | G6: 6 | J6: s_3 = | K6: =E6-G6 -> 0
A8: Solutions for x_1, x_2, and x_3 | B8: 0 | C8: 0 | D8: 2

Sheet Portfolio Frontier
I1: E(r_i) = | J1: 0.1 | K1: 0.06 | L1: 0.2
B2: coef. 1 | C2: coef.2 | D2: coef. 3 | E2: Result | I2: sigma(r_i) = | J2: 0.2 | K2: 0.1 | L2: 0.3
A3: Objectinve Function | E3: =(B7*B7*B9+C7*C7*C10+D7*D7*D11+2*B7*C7*C9+2*B7*D7*D9+2*C7*D7*D10)^0.5 -> 0.2953820052 | I3: correlation = | J3: 1 | K3: 0.5 | L3: 0.8
A4: C1 | B4: 0.1 | C4: 0.06 | D4: 0.2 | E4: =SUMPRODUCT(B4:D4,$B$7:$D$7) -> 0.2000000005 | F4: = | G4: 0.2 | K4: 1 | L4: 0.7
A5: C2 | B5: 1 | C5: 1 | D5: 1 | E5: =SUMPRODUCT(B5:D5,$B$7:$D$7) -> 1 | F5: = | G5: 1 | L5: 1
I6: (derived according to the annualized adjusted returns in the historical data)
A7: Solution Value (weights) | B7: -0.377378399 | C7: 0.2695559958 | D7: 1.107822403
A9: variance-covariance | B9: =0.2^2 -> 0.04 | C9: =0.5*0.2*0.1 -> 0.01 | D9: =0.8*0.2*0.3 -> 0.048
B10: =C9 -> 0.01 | C10: =0.1^2 -> 0.01 | D10: =0.7*0.1*0.3 -> 0.021
B11: =D9 -> 0.048 | C11: =D10 -> 0.021 | D11: =0.3^2 -> 0.09
B18: E(r_p) | C18: sigma(r_p)
B19: 0 | C19: 0.09068100316
B20: 0.01 | C20: 0.08424998074
B21: 0.02 | C21: 0.08066853891
B22: 0.03 | C22: 0.08031880195
B23: 0.04 | C23: 0.08324166934
B24: 0.05 | C24: 0.08911568826
B25: 0.06 | C25: 0.09740831834
B26: 0.07 | C26: 0.1075616255
B27: 0.08 | C27: 0.1191007538
B28: 0.09 | C28: 0.1316618054
B29: 0.1 | C29: 0.1449794136
B30: 0.11 | C30: 0.1588633986
B31: 0.12 | C31: 0.1731776148
B32: 0.13 | C32: 0.1878237173
B33: 0.14 | C33: 0.202729786
B34: 0.15 | C34: 0.2178424628
B35: 0.16 | C35: 0.2331215699
B36: 0.17 | C36: 0.2485364142
B37: 0.18 | C37: 0.264063226
B38: 0.19 | C38: 0.2796833577
B39: 0.2 | C39: 0.2953820052

Sheet E(r), s.d., and correlation
A1: daily return | B1: r1 | C1: r2 | D1: r3
B2: 0.001 | C2: -0.03 | D2: 0.003
B3: -0.03 | C3: 0.007 | D3: -0.035
B4: 0.04 | C4: 0.007 | D4: 0.015
B5: 0.015 | C5: 0.003 | D5: 0.006
B6: -0.04 | C6: 0.02 | D6: 0.001
A8: annual E(r_i) | B8: =AVERAGE(B2:B6)*250 -> -0.7 | C8: =AVERAGE(C2:C6)*250 -> 0.35 | D8: =AVERAGE(D2:D6)*250 -> -0.5
A9: annual sigma_i | B9: =STDEV(B2:B6)*SQRT(250) -> 0.5176147216 | C9: =STDEV(C2:C6)*SQRT(250) -> 0.2955080371 | D9: =STDEV(D2:D6)*SQRT(205) -> 0.2750363612
A10: correlation_ij | B10: =CORREL(B2:B6,B2:B6) -> 1 | C10: =CORREL(B2:B6,C2:C6) -> -0.2841441943 | D10: =CORREL(B2:B6,D2:D6) -> 0.6658938772
B11: =C10 -> -0.2841441943 | C11: =CORREL(C2:C6,C2:C6) -> 1 | D11: =CORREL(C2:C6,D2:D6) -> -0.1239502865
B12: =D10 -> 0.6658938772 | C12: =D11 -> -0.1239502865 | D12: =CORREL(D2:D6,D2:D6) -> 1
